Cogmind - Beta 16 @@@ ROGUE MODE // 2025.11.05 @ 17:44:15 Player: shapeshifter Result: Self-destructed Performance ------------- Evolutions (4) 2000 Regions Visited (10) 2000 Robots Destroyed (37) 185 Value Destroyed (852) 852 Prototype IDs (42) 840 Alien Tech Used (0) 0 Bonus (1213) 1213 TOTAL SCORE: 7090 Bonus ------- Follower Combat Kills 467 Entered DSFs 500 Aligned with FarCom 300 Friendly Fire -54 Cogmind --------- Core Integrity 447/850 Matter 132/300 Energy 29/100 System Corruption 3% Temperature Cool (9) Movement Core (50) Location -6/Factory Parts ------- > --- POWER (1) -------- (None) > --- PROPULSION (5) --- (None) > --- UTILITY (7) ------ Advanced Visual Processing Unit Improved Signal Interpreter Advanced Terrain Scanner Advanced Targeting Computer > --- WEAPON (2) ------- (None) > --- INVENTORY (5) ---- Cooled Aerolev Unit Authchip [R/Combat] Field Lobotomy Kit (4) Peak State ------------ > --- POWER ------------ Angular Momentum Engine > --- PROPULSION ------- Cooled Aerolev Unit Gravmag Array Gravmag Array > --- UTILITY ---------- Advanced Heat Sink Advanced Visual Processing Unit Advanced Sensor Array Improved Signal Interpreter Advanced Terrain Scanner Advanced Targeting Computer Hardened Medium Armor Plating > --- WEAPON ----------- Gauss Rifle Improved Datajack > --- INVENTORY -------- Gravmag Array Authchip [R/Combat] Field Lobotomy Kit Deploy-a-Sentry [Rating: 68] Favorites ----------- Power Angular Momentum Engine Engine Angular Momentum Engine Power Core Light Nuclear Core Propulsion Flight Unit Leg Light Armored Exoskeleton Hover Unit Gravmag Array Flight Unit Flight Unit Utility Small Storage Unit Device Advanced Heat Sink Storage Small Storage Unit Processor Advanced Targeting Computer Hackware Hacking Suite Protection Hardened Medium Armor Plating Weapon Light Assault Rifle Energy Gun Precision Beam Rifle Ballistic Gun Light Assault Rifle Launcher YI-UF0's Doublenader Special Weapon Field Lobotomy Kit Special Melee Weapon Datajack Build | -11 -10 -10 -10 -9 -8 -7 -7 -6 -6 -6 ------- Run | Yrd Mat Min Exi Min Mat Fac DSF Fac Was Fac Slots Evolved 8 | . . . . . 4 2 . 2 . . Power . | . . . . . . . . . . . Propulsion 3 | . . . . . 1 1 . 1 . . Utility 5 | . . . . . 3 1 . 1 . . Weapon . | . . . . . . . . . . . Parts Attached 65 | 4 8 . 4 7 13 1 11 2 . 15 Power 3 | 1 . . . . 1 . 1 . . . Engine 2 | 1 . . . . . . 1 . . . Core 1 | . . . . . 1 . . . . . Reactor . | . . . . . . . . . . . Propulsion 22 | . 4 . 1 2 4 1 2 . . 8 Treads . | . . . . . . . . . . . Leg 3 | . . . . 1 . . 2 . . . Wheel . | . . . . . . . . . . . Hover 10 | . 1 . . . 1 . . . . 8 Flight 9 | . 3 . 1 1 3 1 . . . . Utility 21 | 1 1 . 1 1 4 . 6 2 . 5 Device 7 | 1 1 . . . 1 . 1 1 . 2 Storage 3 | . . . 1 . . . 1 . . 1 Processor 6 | . . . . 1 1 . 3 1 . . Hackware 2 | . . . . . 1 . . . . 1 Protection 3 | . . . . . 1 . 1 . . 1 Artifact . | . . . . . . . . . . . Weapon 19 | 2 3 . 2 4 4 . 2 . . 2 Energy Gun 4 | 1 . . . 1 2 . . . . . Energy Cannon . | . . . . . . . . . . . Ballistic Gun 11 | 1 3 . 1 2 1 . 2 . . 1 Ballistic Cannon . | . . . . . . . . . . . Launcher 1 | . . . . . 1 . . . . . Special Weapon 1 | . . . . 1 . . . . . . Impact Weapon . | . . . . . . . . . . . Slashing Weapon . | . . . . . . . . . . . Piercing Weapon . | . . . . . . . . . . . Special Melee Weapon 2 | . . . 1 . . . . . . 1 Unidentified Prototypes 3 | . . . . . 2 . . . . 1 Parts Lost 26 | . 2 . . 6 5 . 2 . 2 9 Power 3 | . . . . . 2 . . . . 1 Propulsion 8 | . 1 . . 3 2 . . . . 2 Utility 8 | . . . . 1 . . 1 . 2 4 Weapon 7 | . 1 . . 2 1 . 1 . . 2 Highest Loss Streak 6 | . 2 . . 6 2 . 2 . 2 6 To Critical Strikes . | . . . . . . . . . . . Average Backups 4 | 2 4 5 4 4 5 4 5 6 5 3 Power . | 1 . . . . . . . . . . Propulsion . | . . 2 1 . . . . 1 2 1 Utility 1 | . 1 1 . . . . 1 2 1 1 Weapon . | . 1 1 1 1 1 1 1 1 . . Tool/Special . | . . . . . . . . . . . Unused Backups 15 | . 2 . . 2 . . 3 2 1 5 Power 1 | . 1 . . . . . . . . . Propulsion 2 | . . . . . . . . . . 2 Utility 7 | . 1 . . . . . 1 1 1 3 Weapon 3 | . . . . 2 . . 1 . . . Tool/Special 2 | . . . . . . . 1 1 . . Average Slot Usage (%) 73 | . 70 100 96 55 83 76 78 75 68 77 Engine 5 | . 4 14 10 2 7 . 5 6 6 5 Leg 4 | . . . . 2 . . 14 13 13 . Hover 3 | . 7 . . . 2 . . . . 20 Flight 6 | . 9 28 28 3 15 23 . . . . Device 11 | . 20 28 24 1 4 7 12 8 13 14 Storage 6 | . . . 3 14 9 7 7 6 3 1 Processor 11 | . . . . 11 13 15 10 15 20 20 Hackware 2 | . . . . . 8 7 7 4 . 1 Protection 1 | . . . . . 2 . 3 6 2 2 Energy Gun 1 | . . . . . 4 15 2 . . . Ballistic Gun 13 | . 26 28 19 11 12 . 10 13 8 4 Special Melee Weapon 2 | . . . 8 7 . . . . . 5 Peak Build Rating 68 | 3 7 7 10 14 33 30 54 54 54 68 Average Rating 27 | 1 4 7 7 9 23 30 49 52 48 57 On Entrance 22 | . 2 7 7 10 14 29 30 52 54 45 Avg Prop Armor Cover (%) 17 | . . . . . . . 16 . . 20 Naked Turns . | . . . . . . . . . . . Heaviest Build 41 | 3 8 7 8 10 16 10 39 36 36 41 Greatest Support 60 | 3 8 8 8 15 15 15 60 60 60 57 Greatest Overweight (x) 4 | . 1 . . 2 4 . . . . . Average Overweight (x) . | . . . . . . . . . . . Largest Inventory Capacity 15 | 5 5 5 8 8 8 8 8 8 8 15 Average Capacity 7 | 5 5 5 5 8 8 8 8 8 6 7 Most Carried 8 | 5 5 5 8 8 8 7 8 8 8 6 Average Carried 6 | 3 4 5 5 7 7 7 7 7 6 4 Final Capacity 8 | 5 5 5 8 8 8 8 8 8 5 5 Final Carried 8 | 5 5 5 8 8 8 7 8 8 5 3 Class Distribution -------------------- 67% | Mutant 16% | Scavenger-Mutant 10% | Scout 4% | Skirmisher Dominant Class ---------------- Mutant | -10/Materials Scavenger-Mutant | -10/Mines Scavenger-Mutant | -10/Exiles Mutant | -9/Mines Scavenger-Mutant | -8/Materials Scavenger-Mutant | -7/Factory Mutant | -7/DSF Mutant | -6/Factory Mutant | -6/Waste Scout | -6/Factory Resources | -11 -10 -10 -10 -9 -8 -7 -7 -6 -6 -6 ----------- Run | Yrd Mat Min Exi Min Mat Fac DSF Fac Was Fac Matter Collected 1449 | 167 315 114 10 183 204 . 334 50 . 72 Remotely . | . . . . . . . . . . . Salvage Created 1238 | 20 325 . . 304 312 . 56 120 . 101 Parts 78 | 3 23 . . 16 29 . 2 3 . 2 Haulers Intercepted 3 | . 2 . . . 1 . . . . . Recyclers Shooed . | . . . . . . . . . . . Parts Field Recycled . | . . . . . . . . . . . Retrieved Matter . | . . . . . . . . . . . Parts Self-Destructed . | . . . . . . . . . . . Prevented . | . . . . . . . . . . . Parts Restored . | . . . . . . . . . . . Kills | -11 -10 -10 -10 -9 -8 -7 -7 -6 -6 -6 ------- Run | Yrd Mat Min Exi Min Mat Fac DSF Fac Was Fac Combat Hostiles Destroyed 27 | . 8 . . 3 11 . 1 2 . 2 Guns 22 | . 8 . . 3 6 . 1 2 . 2 AOE 5 | . . . . . 5 . . . . . Classes Destroyed 10 | 1 5 . . 1 2 . 1 . . . Builder 1 | . . . . . 1 . . . . . Tunneler 1 | 1 . . . . . . . . . . Hauler 3 | . 2 . . . 1 . . . . . Recycler 2 | . . . . 2 . . . . . . Operator 1 | . 1 . . . . . . . . . Watcher 1 | . 1 . . . . . . . . . Swarmer 15 | . 6 . . 3 5 . . . . 1 Grunt 9 | . 2 . . . 5 . . 2 . . Sentry 2 | . . . . . 1 . . . . 1 Hunter 1 | . . . . . . . 1 . . . Best Kill Streak 5 | 1 4 . . 3 5 . 1 1 . 1 Combat Bots Only 4 | . 3 . . 3 4 . 1 1 . 1 Max Kills in Single Turn 2 | 1 1 . . 1 2 . 1 1 . 1 Gunslinging . | . . . . . . . . . . . Exploded 2 | . . . . . 2 . . . . . Melee . | . . . . . . . . . . . Uniques/NPCs Destroyed 1 | . . . . 1 . . . . . . YI-UF0 (-9/Mines) Combat | -11 -10 -10 -10 -9 -8 -7 -7 -6 -6 -6 -------- Run | Yrd Mat Min Exi Min Mat Fac DSF Fac Was Fac Hostile Shots Fired 366 | . 35 . . 21 114 . 19 9 4 164 Missed 139 | . 9 . . 8 48 . 8 2 1 63 Hits 227 | . 26 . . 13 66 . 11 7 3 101 Melee 28 | . . . . . . . . . 3 25 Projectile 199 | . 26 . . 13 66 . 11 7 . 76 AOE 11 | . . . . 8 . . . . . 3 Critical Strikes 14 | . 1 . . . . . . 1 1 11 Damage Taken 3515 | . 262 . . 315 671 . 380 137 137 1613 Core 938 | . 56 . . 78 191 . 210 20 . 383 Absorbed by Shields . | . . . . . . . . . . . Core Remaining (%) 70 | 100 . . . 46 65 . 70 . . . Volleys Fired 171 | 2 45 4 . 47 44 . 4 11 . 14 Largest 2 | 2 2 2 . 2 2 . 2 2 . 1 Hottest 122 | 60 40 40 . 50 122 . 56 56 . 30 Shots Fired 290 | 4 82 8 . 75 77 . 8 22 . 14 Gun 281 | 4 82 8 . 74 69 . 8 22 . 14 Cannon . | . . . . . . . . . . . Launcher 8 | . . . . . 8 . . . . . Special 1 | . . . . 1 . . . . . . Kinetic 268 | 2 82 8 . 71 61 . 8 22 . 14 Thermal 13 | 2 . . . 3 8 . . . . . Explosive 8 | . . . . . 8 . . . . . Electromagnetic . | . . . . . . . . . . . Robot Hit Streak 10 | 3 7 4 . 10 10 . 2 4 . 6 Robot Miss Streak 5 | 1 4 1 . 3 5 . 3 1 . 2 Penetration Max . | . . . . . . . . . . . Secondary Targets 3 | . 1 . . 1 1 . . . . . Max Gunslinging Chain 1 | . 1 . . 1 1 . . . . . Shots Hit Robots 183 | 3 43 6 4 54 44 . 4 14 . 11 Core Hits 90 | 1 19 2 . 15 39 . 3 7 . 4 Critical Kills . | . . . . . . . . . . . Critical Parts Destroyed 2 | . 1 . . 1 . . . . . . Critical Strikes 2 | . 1 . . 1 . . . . . . Destroy 2 | . 1 . . 1 . . . . . . Melee Attacks 13 | . . . 4 5 . . . . . 4 Impact . | . . . . . . . . . . . Slashing . | . . . . . . . . . . . Piercing . | . . . . . . . . . . . Sneak Attacks 10 | . . . 4 5 . . . . . 1 Combat Hostiles . | . . . . . . . . . . . Follow-up Attacks . | . . . . . . . . . . . Damage Inflicted 2545 | 35 542 51 . 397 1015 . 51 271 . 183 Guns 1881 | 35 542 51 . 397 359 . 51 271 . 175 Cannons . | . . . . . . . . . . . Explosions 656 | . . . . . 656 . . . . . Melee . | . . . . . . . . . . . Ramming 8 | . . . . . . . . . . 8 Kinetic 1740 | 13 542 51 . 371 266 . 51 271 . 175 Thermal 141 | 22 . . . 26 93 . . . . . Explosive 656 | . . . . . 656 . . . . . Electromagnetic . | . . . . . . . . . . . Impact . | . . . . . . . . . . . Slashing . | . . . . . . . . . . . Piercing . | . . . . . . . . . . . Highest Corruption 3 | . . . . . . . . . . 3 Average Corruption 3 | . . . . . . . . . . 3 Corruption Purged . | . . . . . . . . . . . Corruption Blocked . | . . . . . . . . . . . Overload Shots . | . . . . . . . . . . . Overflow Damage 3 | . . . . . 3 . . . . . Projectiles . | . . . . . . . . . . . Explosions 3 | . . . . . 3 . . . . . Melee . | . . . . . . . . . . . Knockbacks . | . . . . . . . . . . . Impact . | . . . . . . . . . . . Kinetic . | . . . . . . . . . . . Secondary . | . . . . . . . . . . . Self-Inflicted Damage 4 | . . . . . . . . . . 4 Shots . | . . . . . . . . . . . Rammed 2 | . . . . . . . . . . 2 Targets Rammed 2 | . . . . . . . . . . 2 Kicked . | . . . . . . . . . . . Crushed . | . . . . . . . . . . . Highest Temperature 186 | . 2 . . . 186 . . . . 8 Average Temperature 58 | . 2 . . . 67 . . . . 4 Received Heat Transfer 369 | . 63 . . . 162 . . 81 . 63 Siege Activations . | . . . . . . . . . . . Martial Activations . | . . . . . . . . . . . Shielding Activations . | . . . . . . . . . . . Robots Disrupted . | . . . . . . . . . . . Combat Hostiles . | . . . . . . . . . . . Robots Corrupted . | . . . . . . . . . . . Combat Hostiles . | . . . . . . . . . . . Parts Fried . | . . . . . . . . . . . Impact Corruptions . | . . . . . . . . . . . Robots Melted . | . . . . . . . . . . . Combat Hostiles . | . . . . . . . . . . . Parts Melted . | . . . . . . . . . . . Heat Transferred 309 | 50 . . . 74 185 . . . . . Parts Sabotaged . | . . . . . . . . . . . Parts Stolen . | . . . . . . . . . . . Parts Stripped . | . . . . . . . . . . . Power Chain Reactions . | . . . . . . . . . . . Alert | -11 -10 -10 -10 -9 -8 -7 -7 -6 -6 -6 ------- Run | Yrd Mat Min Exi Min Mat Fac DSF Fac Was Fac Maximum Alert Level 2 | . . . . . 2 . 1 1 . . Low Security (%) 89 | 100 100 100 . 100 74 100 62 87 100 100 Level 1 10 | . . . . . 25 . 37 12 . . Level 2 . | . . . . . . . . . . . Level 3 . | . . . . . . . . . . . Level 4 . | . . . . . . . . . . . Level 5 . | . . . . . . . . . . . High Security . | . . . . . . . . . . . Max Security . | . . . . . . . . . . . Sterilizations 1 | . . . . . . . 1 . . . Peak Influence 409 | 5 94 70 . 90 409 136 344 205 56 90 Initial 180 | . . 22 . . . 136 98 180 56 . Average 72 | . 32 34 . 17 113 136 205 184 13 9 Influence Increases 1747 | 5 244 58 . 225 619 4 266 81 . 245 Destroy 0b10 Robot/C 840 | . 160 40 . 140 220 . 200 40 . 40 Destroy 0b10 Robot/NC 50 | 5 20 . . 15 10 . . . . . Destroy Leader 158 | . 36 10 . 20 32 . 40 10 . 10 Allied During Kill 37 | . . 8 . 5 . . 24 . . . Successful Hack 56 | . 10 . . . 12 4 . . . 30 Disable Machine 75 | . . . . . 45 . . 30 . . Destroy Structure 36 | . 3 . . 15 15 . 2 1 . . Partial Spotted 60 | . 15 . . . 30 . . . . 15 Lose Combat Pursuer 435 | . . . . 30 255 . . . . 150 Influence Decreases 1667 | 5 186 116 . 225 318 165 62 264 161 165 Entered New Map 512 | . . 36 . . . 165 42 164 105 . Time Decay 785 | 5 166 40 . 165 168 . . 100 30 111 Search Patrol Dispatched 100 | . . . . . 100 . . . . . Lost Part 210 | . 20 . . 60 50 . 20 . 6 54 Lost Ally 60 | . . 40 . . . . . . 20 . Squads Dispatched 10 | . . . . . 4 . 1 1 . 4 Investigation 2 | . . . . . 1 . . . . 1 Extermination 1 | . . . . . . . . . . 1 Reinforcement 7 | . . . . . 3 . 1 1 . 2 Assault . | . . . . . . . . . . . Garrison . | . . . . . . . . . . . Intercept . | . . . . . . . . . . . Searches Triggered 1 | . . . . . 1 . . . . . Construction Impeded . | . . . . . . . . . . . Haulers Reinforced . | . . . . . . . . . . . Active Scanning Responses . | . . . . . . . . . . . Cargo Convoy Interrupts . | . . . . . . . . . . . Stealth | -11 -10 -10 -10 -9 -8 -7 -7 -6 -6 -6 --------- Run | Yrd Mat Min Exi Min Mat Fac DSF Fac Was Fac Distress Signals 3 | . . . . . 3 . . . . . Communications Jammed . | . . . . . . . . . . . Distress Signals . | . . . . . . . . . . . Times Spotted 113 | . 14 14 . 9 36 . 5 3 6 26 Peak Tracking Total 20 | . 4 20 . 3 19 . 3 2 6 12 Tactical Retreats 11 | . . 1 . 1 5 . . . . 4 Traps | -11 -10 -10 -10 -9 -8 -7 -7 -6 -6 -6 ------- Run | Yrd Mat Min Exi Min Mat Fac DSF Fac Was Fac Traps Triggered 5 | . . . . . 2 . . 1 . 2 Indirectly . | . . . . . . . . . . . Trap Hack Attempts . | . . . . . . . . . . . Triggered . | . . . . . . . . . . . Disarmed . | . . . . . . . . . . . Reprogrammed . | . . . . . . . . . . . Reused . | . . . . . . . . . . . Traps Extracted . | . . . . . . . . . . . Installed . | . . . . . . . . . . . Triggered . | . . . . . . . . . . . Machines | -11 -10 -10 -10 -9 -8 -7 -7 -6 -6 -6 ---------- Run | Yrd Mat Min Exi Min Mat Fac DSF Fac Was Fac Machines Disabled 7 | . . . . 2 3 . . 2 . . Max in Single Turn 2 | . . . . . 2 . . 1 . . Garrison Access 1 | . . . . . . . . 1 . . Machines Repaired . | . . . . . . . . . . . Machines Dismantled . | . . . . . . . . . . . Machines Sabotaged . | . . . . . . . . . . . Overloaded Fab Kills . | . . . . . . . . . . . Hacking | -11 -10 -10 -10 -9 -8 -7 -7 -6 -6 -6 --------- Run | Yrd Mat Min Exi Min Mat Fac DSF Fac Was Fac Machines Accessed 25 | . 8 . 2 . 6 1 . 3 . 5 Terminals 15 | . 7 . . . 4 1 . . . 3 Fabricators 2 | . . . . . . . . 1 . 1 Repair Stations . | . . . . . . . . . . . Recycling Units 2 | . 1 . . . 1 . . . . . Scanalyzers 2 | . . . . . 1 . . 1 . . Garrison Access 2 | . . . . . . . . 1 . 1 Total Hacks 54 | . 21 . 2 . 14 1 . 7 . 9 Successful 25 | . 10 . 2 . 5 1 . 4 . 3 Failed 28 | . 11 . . . 8 . . 3 . 6 Catastrophic 4 | . . . . . 1 . . . . 3 Database Lockouts 1 | . . . . . 1 . . . . . Manual 24 | . 17 . 1 . 6 . . . . . Terminals 33 | . 18 . . . 9 1 . . . 5 Fabricators 5 | . . . . . . . . 2 . 3 Repair Stations . | . . . . . . . . . . . Recycling Units 6 | . 3 . . . 3 . . . . . Scanalyzers 5 | . . . . . 2 . . 3 . . Garrison Access 3 | . . . . . . . . 2 . 1 Terminal Hacks 10 | . 3 . 2 . 3 1 . . . 1 Record 1 | . . . 1 . . . . . . . Open DSF 1 | . . . . . . 1 . . . . Level Access Points 1 | . . . . . . . . . . 1 Terminal Index 1 | . 1 . . . . . . . . . Zone Layout 5 | . 2 . . . 3 . . . . . Proto ID Catalog 1 | . . . 1 . . . . . . . Fabricator Hacks 2 | . . . . . . . . . . 2 Network Status 1 | . . . . . . . . . . 1 Build 1 | . . . . . . . . . . 1 Repair Station Hacks . | . . . . . . . . . . . Recycling Unit Hacks 1 | . 1 . . . . . . . . . Retrieve Components 1 | . 1 . . . . . . . . . Scanalyzer 4 | . . . . . 1 . . 3 . . Retrieve Study 4 | . . . . . 1 . . 3 . . Garrison Access Hacks 1 | . . . . . . . . 1 . . Seal Access 1 | . . . . . . . . 1 . . Unauthorized Hacks 7 | . 6 . . . 1 . . . . . Terminals 7 | . 6 . . . 1 . . . . . Botnet 1 | . 1 . . . . . . . . . Skim 6 | . 5 . . . 1 . . . . . Fabricators . | . . . . . . . . . . . Repair Stations . | . . . . . . . . . . . Recycling Units . | . . . . . . . . . . . Scanalyzers . | . . . . . . . . . . . Garrison Access . | . . . . . . . . . . . Data Cores Recovered 1 | . 1 . . . . . . . . . Used 1 | . 1 . . . . . . . . . Hacking Detections 17 | . 6 . . . 5 . . 1 . 5 Full Trace Events 1 | . . . . . . . . . . 1 Feedback Events . | . . . . . . . . . . . Feedback Blocked . | . . . . . . . . . . . Robot Schematics Acquired . | . . . . . . . . . . . Robots Built . | . . . . . . . . . . . Authchips . | . . . . . . . . . . . Time . | . . . . . . . . . . . Total Robot Build Rating . | . . . . . . . . . . . Part Schematics Acquired . | . . . . . . . . . . . Parts Built . | . . . . . . . . . . . Authchips . | . . . . . . . . . . . Time 187 | . . . . . . . . . . 187 Total Part Build Rating . | . . . . . . . . . . . Part Studies Acquired 4 | . . . . . 1 . . 3 . . Parts Repaired . | . . . . . . . . . . . Time . | . . . . . . . . . . . Parts Recycled . | . . . . . . . . . . . Recycled Matter . | . . . . . . . . . . . Retrieved Matter . | . . . . . . . . . . . Retrieved Components 4 | . 4 . . . . . . . . . Parts Scanalyzed . | . . . . . . . . . . . Part Schematics Acquired . | . . . . . . . . . . . Parts Damaged . | . . . . . . . . . . . Bothacking | -11 -10 -10 -10 -9 -8 -7 -7 -6 -6 -6 ------------ Run | Yrd Mat Min Exi Min Mat Fac DSF Fac Was Fac Used RIF Installer . | . . . . . . . . . . . Robots Hacked 9 | . . . 4 3 . . . . . 2 Non-combat 7 | . . . 3 2 . . . . . 2 Combat 2 | . . . 1 1 . . . . . . Robot Hacks Applied 10 | . . . 4 4 . . . . . 2 parse_system 8 | . . . 4 3 . . . . . 1 no_distress 2 | . . . . 1 . . . . . 1 Relay Couplers Released . | . . . . . . . . . . . Fabnet Peak Effective % . | . . . . . . . . . . . Robots Rewired . | . . . . . . . . . . . Allies Hacked . | . . . . . . . . . . . Hacks Repelled . | . . . . . . . . . . . Allies | -11 -10 -10 -10 -9 -8 -7 -7 -6 -6 -6 -------- Run | Yrd Mat Min Exi Min Mat Fac DSF Fac Was Fac Total Allies 4 | . . 3 . 1 . . . . . . Largest Group 3 | . . 3 . 1 . . . . . . Highest-Rated Group 45 | . . 40 . 45 . . . . . . Highest-Rated Ally 45 | . . 16 . 45 . . . . . . Initial Warlord ECA Mod 9 | . . . . . . . . 9 9 9 Total Orders . | . . . . . . . . . . . Ally Attacks 53 | . . 12 . 5 . . 28 . 7 1 Total Damage 2350 | . . 124 . 369 . . 1396 . 395 66 Kills 16 | . . 2 . 5 . . 9 . . . Allies Corrupted . | . . . . . . . . . . . Allies Melted . | . . . . . . . . . . . Turrets Deployed 3 | . . . . . . . 1 . 1 1 Field Lobotomies 1 | . . . . 1 . . . . . . Intel | -11 -10 -10 -10 -9 -8 -7 -7 -6 -6 -6 ------- Run | Yrd Mat Min Exi Min Mat Fac DSF Fac Was Fac Active Infowar (turns) 1558 | 4 384 109 158 93 . . 13 212 159 426 Optics 810 | . . . . . . . 13 212 159 426 Sensors 563 | . . . . . . . . 67 159 337 Terrain 335 | . . . . . . . . . . 335 Seismic 748 | 4 384 109 158 93 . . . . . . Robot Analysis Total . | . . . . . . . . . . . Derelict Logs Recovered 2 | . . . . 2 . . . . . . Drone Launches . | . . . . . . . . . . . Drone Recoveries . | . . . . . . . . . . . Exploration | -11 -10 -10 -10 -9 -8 -7 -7 -6 -6 -6 ------------- Run | Yrd Mat Min Exi Min Mat Fac DSF Fac Was Fac Turns Passed 3136 | 42 384 109 158 777 416 6 447 212 159 426 Spaces Moved 3383 | 48 437 231 376 678 533 14 252 118 124 572 Core 503 | 48 28 . . 423 4 . . . . . Treads . | . . . . . . . . . . . Legs 600 | . . . . 87 26 . 245 118 124 . Wheels . | . . . . . . . . . . . Hover 819 | . 198 . . . 49 . . . . 572 Flight 1461 | . 211 231 376 168 454 14 7 . . . Fastest Speed 34 | 50 37 37 37 37 34 34 34 125 125 48 Average Speed 68 | 50 49 37 37 90 49 34 137 128 125 57 Slowest Speed 280 | 50 120 37 37 150 280 34 140 140 125 77 Overloaded Moves 35 | . . . . . . . . . . 35 Propulsion Burnouts . | . . . . . . . . . . . Robots Hopped 17 | . 3 2 . 2 10 . . . . . Potential Cave-ins . | . . . . . . . . . . . Cave-ins Triggered . | . . . . . . . . . . . Time Travels 1 | . . . . . . . . 1 . . Exploration Rate (%) 48 | 4 76 40 69 91 54 1 98 4 81 20 Regions Visited 10 Branch Regions 3 Pre-discovered Areas 1 | . . . 1 . . . . . . . Known Exits Taken 2 | . . . . . 1 1 . . . . Unknown Exits Taken 5 | 1 1 1 1 1 . . . . . . Scrap Searched 2 | . . 1 . 1 . . . . . . Spaces Dug . | . . . . . . . . . . . Terrain Destroyed 17 | . . . . . 17 . . . . . Melee . | . . . . . . . . . . . Projectile . | . . . . . . . . . . . AOE 17 | . . . . . 17 . . . . . Terrain Rammed . | . . . . . . . . . . . Walls Destroyed . | . . . . . . . . . . . Machines Disabled . | . . . . . . . . . . . Actions | -11 -10 -10 -10 -9 -8 -7 -7 -6 -6 -6 --------- Run | Yrd Mat Min Exi Min Mat Fac DSF Fac Was Fac Total 3912 | 62 519 245 393 778 607 14 350 157 128 659 Wait 190 | . 18 13 . 30 17 . 58 22 4 28 Move 3342 | 47 430 226 375 674 513 13 251 118 123 572 Hop 15 | . 3 2 . 1 9 . . . . . Pick Up 47 | 7 5 . 5 5 2 . 12 2 . 9 Fast Attach 41 | . 7 . . 4 12 . 5 2 . 11 Attach 25 | 4 3 . 1 5 1 1 5 . . 5 Detach 8 | 2 1 . 2 2 . . . . . 1 Swap 10 | . 1 . 3 1 4 . 1 . . . Drop 48 | . 6 . 3 4 5 . 14 2 1 13 Fire 171 | 2 45 4 . 47 44 . 4 11 . 14 Melee 13 | . . . 4 5 . . . . . 4 Ram 2 | . . . . . . . . . . 2 Kick . | . . . . . . . . . . . Crush . | . . . . . . . . . . . Escape Stasis . | . . . . . . . . . . . Rewire . | . . . . . . . . . . . Trap . | . . . . . . . . . . . Miscellaneous . | . . . . . . . . . . . Route ------- -11/Scrapyard -10/Materials (discovered 4 exits: [*Mat x2] / [*Min x2]) -10/Mines -10/Exiles -9/Mines -8/Materials (discovered 2 exits: *Fac x2) -7/Factory -7/DSF -6/Factory -6/Waste -6/Factory (discovered 4 exits: *Fac x4) History --------- Turn | Location | Event 22 | -11/Scrapyard | Discovered new exit (range 16) 43 | -11/Scrapyard | Entered Materials 184 | -10/Materials | Discovered new exit (range 9) 239 | -10/Materials | Discovered new exit (range 4) 329 | -10/Materials | Build established: Mutant 362 | -10/Materials | Discovered new exit (range 16) 397 | -10/Materials | Discovered new exit (range 13) 427 | -10/Materials | Entered Mines 428 | -10/Mines | Assisted by bots powering up and referring to "LRC-V3" 502 | -10/Mines | Assembled infested the area 530 | -10/Mines | Found a Scrap Suit stashed away for nefarious purposes 535 | -10/Mines | Deemed a non-threat by the Exiles lab entrance 535 | -10/Mines | Discovered new exit (range 5) 536 | -10/Mines | Entered Exiles 545 | -10/Exiles | Met 8R-AWN 555 | -10/Exiles | Met EX-HEX 573 | -10/Exiles | Met EX-DEC 585 | -10/Exiles | Learned location of Zion (-6) 613 | -10/Exiles | Met EX-BIN 635 | -10/Exiles | Aligned with FarCom system 635 | -10/Exiles | Given EX-Vault access code 644 | -10/Exiles | Opened EX-Vault 652 | -10/Exiles | Found Field Lobotomy Kit 654 | -10/Exiles | Found Deploy-a-Sentry 655 | -10/Exiles | Found Deploy-a-Sentry 657 | -10/Exiles | Found Deploy-a-Sentry 659 | -10/Exiles | Found Chronowheel 667 | -10/Exiles | Warned to stay clear of 0b10 Research branches 691 | -10/Exiles | Discovered new exit (range 10) 694 | -10/Exiles | Stole three prototypes: Chronowheel, Field Lobotomy Kit, Deploy-a-Sentry 694 | -10/Exiles | Entered Mines 700 | -9/Mines | Learned location of 1 exit from Materials 701 | -9/Mines | Discovered new exit (range 5) 788 | -9/Mines | Core integrity fell below 50% 789 | -9/Mines | Assimilated YI-UF0 with FLK Orb 812 | -9/Mines | Joined a pair of Derelicts in attacking an 0b10 outpost 818 | -9/Mines | Lost 6 parts (3n1u2w) 996 | -9/Mines | Learned location of 1 exit from Proximity Caves 1339 | -9/Mines | Murdered YI-UF0 1361 | -9/Mines | Found YI-UF0's Doublenader 1471 | -9/Mines | Entered Materials 1471 | -8/Materials | Evolved 4 slots: Propulsion x1, Utility x3 1472 | -8/Materials | Identified exit to Factory 1733 | -8/Materials | Central database locked down 1864 | -8/Materials | Discovered exit to Factory (range 14) 1871 | -8/Materials | Search patrols dispatched 1887 | -8/Materials | Entered Factory 1887 | -7/Factory | Evolved 2 slots: Propulsion x1, Utility x1 1889 | -7/Factory | FarCom data flow suspended 1893 | -7/Factory | Identified exit to DSF 1893 | -7/Factory | Entered DSF 1945 | -7/DSF | DAS Turret deployed 1951 | -7/DSF | Additional patrols routed to DSF 2051 | -7/DSF | Discovered new exit (range 15) 2297 | -7/DSF | Sterilization system engaged 2317 | -7/DSF | Ambient heat levels rising (+10) 2332 | -7/DSF | Ambient heat levels rising (+10) 2340 | -7/DSF | Entered Factory 2340 | -6/Factory | Evolved 2 slots: Propulsion x1, Utility x1 2426 | -6/Factory | Activated Chronowheel 2426 | -6/Factory | Spacetime reconverged on an earlier point 2439 | -6/Factory | Discovered new exit (range 13) 2512 | -6/Factory | Identified exit to Factory 2552 | -6/Factory | Sucked down chute 2552 | -6/Factory | Entered Waste 2565 | -6/Waste | Spotted C-40 Crusher 2565 | -6/Waste | Spotted C-40 Crusher 2571 | -6/Waste | DAS Turret deployed 2612 | -6/Waste | Crushed by Compactor (1 part destroyed, 1 dropped) 2624 | -6/Waste | Spotted C-40 Crusher 2624 | -6/Waste | Spotted C-40 Crusher 2637 | -6/Waste | Crushed by Compactor (1 part destroyed) 2646 | -6/Waste | Spotted C-40 Crusher 2672 | -6/Waste | Spotted C-40 Crusher 2693 | -6/Waste | Discovered new exit (range 12) 2707 | -6/Waste | Identified exit to Factory 2711 | -6/Waste | Entered Factory 3006 | -6/Factory | Lost 3 parts (2u1w) 3040 | -6/Factory | Build established: Scout 3046 | -6/Factory | DAS Turret deployed 3137 | -6/Factory | Self-destructed Last Messages --------------- >>Build Building Adv. Myomer Leg... ETC: 187 >>Network(Status) Querying network status... 6 records found: (83,149) - Loaded: Fusion Bomb Launcher (110,182) - Loaded: R-06 Scavenger (140,149) - Loaded: Mic. Antimatter Reactor (98,192) - Idle (131,55) - Building: Adv. Myomer Leg (195,164) - Loaded: Field Propulsion Array 03110_ ALERT: Potential suspicious activity detected, Programmers report to Factory Zone 3L. 03118_ Dropped Lrg. Storage Unit. 03129_ Imp. Datajack destroyed. 03129_ Gravmag Array destroyed. 03132_ Cmb. Airjet severed. 03137_ Cld. Aerolev Unit destroyed. Map ----- +----------------------------------------------------+ | ?????????????????????????????????????????????????? | | ?????????????????????????????????????????????????? | | ?????????????????????????????????????????????????? | | ?????????????????????????????????????????????????? | | ?????????????????????????????????????????????????? | | ?????????????????????????????????????????????????? | | ?????????????????????????????????????????????????? | | ?????????????????????????????????????????????????? | | ?????????????????????????????????????????????????? | | ???????######????????##############??????????????? | | ?????? #????"??# #??????????????? | | ?????? #???????# #??????????????? | | ?????? #???????# # ???????????